bitfinex/quotes_BTCUSD_20260315
["timestamp","ask_amount","ask_price","bid_price","bid_amount"]
[1773559961780,0.06250582,71546.0,71522.0,0.06990855]
[1773559961982,0.06250582,71546.0,71523.0,0.0014]
[1773559962282,0.06250582,71539.0,71522.0,0.06990855]
[1773559962478,0.06390582,71539.0,71523.0,0.0024]
[1773559962717,0.06989292,71538.0,71524.0,0.0699066]
[1773559962899,0.06250582,71537.0,71523.0,0.0014]
[1773559963352,0.06250582,71537.0,71521.0,0.0700639]
[1773559965151,0.06386453,71535.0,71521.0,0.0700639]
[1773559965931,0.06386453,71535.0,71521.0,0.0001546]
[1773559967245,0.06408922,71533.0,71521.0,0.0001546]
[1773559967393,0.06408922,71533.0,71522.0,0.0014]
[1773559969835,0.06989878,71532.0,71522.0,0.07130819]
[1773559970042,0.06404537,71531.0,71522.0,0.07130819]
[1773559971421,0.06404537,71531.0,71522.0,0.0014]
[1773559972041,0.06990074,71530.0,71522.0,0.0014]
[1773559975827,0.06990074,71530.0,71523.0,0.0014]
[1773559976867,0.13386237,71530.0,71523.0,0.0014]
[1773559977004,0.06396163,71529.0,71519.0,0.0002]
[1773559977359,0.06396163,71529.0,71520.0,0.0014]
[1773559977957,0.06990269,71528.0,71520.0,0.0014]
[1773559978164,0.0459775,71528.0,71520.0,0.0014]
[1773559978559,0.0459775,71528.0,71519.0,0.07011143]
[1773559978761,0.0459775,71528.0,71520.0,0.0014]
[1773559979168,0.0459775,71528.0,71520.0,0.0713098]
[1773559979555,0.0459775,71528.0,71520.0,0.0699098]
[1773559979771,0.0459775,71528.0,71520.0,0.0713098]
[1773559980064,0.0459775,71528.0,71520.0,0.0699098]
[1773559980267,0.0459775,71528.0,71520.0,0.0713098]
[1773559980615,0.0459775,71528.0,71520.0,0.0699098]
[1773559980830,0.0459775,71528.0,71520.0,0.0713098]
[1773559981532,0.0459775,71528.0,71520.0,0.0715098]
[1773559981862,0.0459775,71528.0,71520.0,0.0701098]
[1773559982067,0.0459775,71528.0,71520.0,0.0715098]
[1773559983315,0.0459775,71528.0,71520.0,0.0701098]
[1773559983590,0.0459775,71528.0,71520.0,0.0715098]
[1773559983876,0.0459775,71528.0,71520.0,0.0701098]
[1773559984167,0.0459775,71528.0,71520.0,0.0715098]
[1773559984382,0.0459775,71528.0,71520.0,0.0701098]
[1773559984521,0.0459775,71528.0,71520.0,0.0715098]
[1773559985363,0.0459775,71528.0,71520.0,0.0701098]
[1773559985576,0.0459775,71528.0,71520.0,0.0715098]
[1773559986211,0.0459775,71528.0,71520.0,0.0701098]
[1773559986386,0.0459775,71528.0,71520.0,0.0715098]
[1773559987142,0.0459775,71528.0,71520.0,0.0002]
[1773559987342,0.0459775,71528.0,71513.0,0.0003166]
[1773559987343,0.05904055,71527.0,71513.0,0.0003166]
[1773559987544,0.05904055,71527.0,71514.0,0.0014]
[1773559987984,0.05904055,71527.0,71515.0,0.0014]
[1773559988160,0.05904055,71527.0,71513.0,0.07023394]
[1773559988340,0.06044055,71527.0,71513.0,0.07023394]
[1773559988555,0.06044055,71527.0,71513.0,0.0003166]
[1773559989013,0.06990465,71526.0,71513.0,0.0003166]
[1773559989253,0.05904055,71525.0,71513.0,0.0003166]
[1773559989446,0.05904055,71525.0,71511.0,0.0002]
[1773559989630,0.05904055,71525.0,71511.0,0.0016]
[1773559990030,0.05904055,71525.0,71509.0,0.06992123]
[1773559990031,0.05904055,71520.0,71509.0,0.0014]
[1773559990639,0.05904055,71520.0,71511.0,0.0002]
[1773559991360,0.05904055,71520.0,71506.0,0.06992392]
[1773559991361,0.05904055,71518.0,71506.0,0.06992392]
[1773559993185,0.06991344,71517.0,71506.0,0.06992392]
[1773559993432,0.05904055,71516.0,71506.0,0.06992392]
[1773559995280,0.12895595,71515.0,71506.0,0.06992392]
[1773559995479,0.12895595,71515.0,71506.0,0.0014]
[1773559997081,0.05904055,71514.0,71505.0,0.0014]
[1773559997937,0.12895742,71514.0,71505.0,0.07132497]
[1773559998665,0.06991687,71514.0,71505.0,0.07132497]
[1773559998867,0.05904055,71513.0,71505.0,0.07132497]
[1773559999021,0.05904055,71513.0,71505.0,0.06992497]
[1773559999022,0.12895804,71513.0,71505.0,0.06992497]
[1773559999229,0.05904055,71512.0,71503.0,0.06992653]
[1773559999422,0.05904055,71512.0,71504.0,0.0014]
[1773560000214,0.05834139,71512.0,71504.0,0.0014]
[1773560001370,0.05834139,71512.0,71503.0,0.07132653]
[1773560002068,0.06257463,71511.0,71503.0,0.06992687]
[1773560002289,0.06257463,71511.0,71503.0,0.07132687]
[1773560002447,0.06257463,71511.0,71503.0,0.04552547]
[1773560003379,0.06257463,71510.0,71503.0,0.01975143]
[1773560003795,0.06257463,71510.0,71494.0,0.0002]
[1773560003975,0.06257463,71510.0,71497.0,0.0014]
[1773560004147,0.06257463,71510.0,71496.0,0.07034252]
[1773560004347,0.06257463,71510.0,71497.0,0.0014]
[1773560005157,0.06992126,71509.0,71496.0,0.07034252]
[1773560005350,0.06257463,71508.0,71497.0,0.0014]
[1773560005925,0.06257463,71508.0,71497.0,0.0016]
[1773560007253,0.06992322,71507.0,71497.0,0.0002]
[1773560007436,0.06992322,71507.0,71496.0,0.04449021]
[1773560007437,0.06257463,71506.0,71496.0,0.04449021]
[1773560008137,0.06257463,71506.0,71494.0,0.07153593]
[1773560008637,0.06257463,71506.0,71494.0,0.07189383]
[1773560009744,0.06257463,71504.0,71494.0,0.07189383]
[1773560009943,0.06257463,71504.0,71486.0,0.13393216]
[1773560009944,0.06992518,71505.0,71481.0,0.06994824]
[1773560009945,0.058651,71498.0,71481.0,0.06994824]
[1773560010150,0.06245463,71497.0,71480.0,0.0713491]
[1773560010348,0.06245463,71497.0,71484.0,0.07028559]
[1773560011217,0.06245463,71497.0,71484.0,0.07128559]
[1773560011412,0.06245463,71497.0,71484.0,0.00034]
[1773560011611,0.06257463,71495.0,71484.0,0.00034]
[1773560012484,0.07133398,71499.0,71484.0,0.00034]
[1773560012485,0.07001046,71506.0,71486.0,0.06398888]
[1773560012806,0.07001046,71506.0,71492.0,0.06398888]
[1773560013278,0.07001046,71506.0,71494.0,0.06398888]
[1773560013707,8.61e-05,71506.0,71496.0,0.06398888]
[1773560017268,8.61e-05,71506.0,71497.0,0.13392188]
[1773560020244,0.07011026,71517.0,71498.0,0.06398888]
[1773560020245,0.0001964,71517.0,71498.0,0.06398888]
[1773560020370,0.0001964,71517.0,71507.0,0.058651]
[1773560020371,0.07011035,71517.0,71507.0,0.058651]
[1773560020571,0.07011035,71517.0,71508.0,0.06538888]
[1773560022418,0.07011035,71517.0,71509.0,0.06992126]
[1773560022622,0.07011035,71517.0,71510.0,0.06398888]
[1773560023377,0.00022001,71514.0,71510.0,0.06398888]
[1773560025653,0.00022001,71514.0,71510.0,0.1339089]
[1773560025940,0.00022001,71514.0,71511.0,0.06398888]
[1773560029638,0.00022001,71514.0,71509.0,0.06992126]
[1773560031248,0.07011035,71517.0,71509.0,0.12813955]
[1773560031453,0.07011035,71517.0,71511.0,0.0002]
[1773560031857,0.00022001,71514.0,71511.0,0.0002]
[1773560034992,0.00022001,71514.0,71511.0,0.07011834]
[1773560042338,0.0001964,71517.0,71511.0,0.07011834]
[1773560042813,1e-08,71517.0,71511.0,0.07011834]
[1773560045452,0.00022001,71521.0,71512.0,0.06366572]
[1773560045655,0.06990652,71525.0,71512.0,0.06366572]
[1773560045852,0.05590652,71525.0,71512.0,0.06366572]
[1773560046264,0.00022001,71517.0,71512.0,0.06366572]
[1773560047179,0.00022001,71517.0,71513.0,0.06991735]
[1773560047515,0.00022001,71517.0,71514.0,0.06506572]
[1773560048901,0.00022001,71517.0,71515.0,0.0699154]
[1773560049517,0.00022001,71517.0,71514.0,0.0713154]
[1773560053522,0.0699077,71523.0,71514.0,0.0713154]
[1773560059150,0.0699066,71524.0,71514.0,0.0713154]
[1773560061434,0.05515885,71523.0,71514.0,0.0713154]
[1773560064404,0.06203916,71522.0,71514.0,0.0699154]
[1773560064543,0.06203916,71522.0,71515.0,0.0014]
[1773560067416,0.06181753,71521.0,71515.0,0.07131447]
[1773560067713,0.06181753,71521.0,71515.0,0.04658746]
[1773560070215,0.0699066,71524.0,71515.0,0.04658746]
[1773560070882,0.07012592,71525.0,71515.0,0.04658746]
[1773560071594,0.12871662,71525.0,71515.0,0.04658746]
[1773560072541,0.12929182,71525.0,71515.0,0.04658746]
[1773560073424,0.00022001,71523.0,71515.0,0.04658746]
[1773560074510,0.07054929,71523.0,71515.0,0.04658746]
[1773560076068,0.12913999,71523.0,71515.0,0.04658746]
[1773560076947,0.07054929,71523.0,71515.0,0.04658746]
[1773560077156,0.0585907,71522.0,71515.0,0.04658746]
[1773560077563,0.0590123,71522.0,71515.0,0.04658746]
[1773560084142,0.05906716,71522.0,71515.0,0.04658746]
[1773560084842,0.00047646,71522.0,71515.0,0.04658746]
[1773560085941,0.12897625,71522.0,71516.0,0.0014]
[1773560086923,0.05906716,71522.0,71516.0,0.07131357]
[1773560087917,0.05906716,71522.0,71515.0,0.0014]
[1773560088769,0.05906716,71522.0,71516.0,0.06991442]
[1773560099797,0.00047646,71522.0,71516.0,0.06991442]
[1773560100103,0.00037361,71525.0,71516.0,0.06991442]
[1773560103618,0.00037361,71525.0,71509.0,0.06992113]
[1773560103619,0.07028008,71525.0,71509.0,0.06992113]
[1773560103790,0.05582961,71524.0,71509.0,0.06997599]
[1773560104011,0.00037361,71525.0,71510.0,0.05863659]
[1773560104207,0.00037361,71525.0,71510.0,0.08253254]
[1773560105152,0.00037361,71525.0,71511.0,0.0014]
[1773560105642,0.00037361,71525.0,71512.0,0.06991833]
[1773560106660,0.07027929,71525.0,71512.0,0.06991833]
[1773560111983,0.07027929,71525.0,71511.0,0.0014]
[1773560111984,0.05582961,71524.0,71511.0,0.0014]
[1773560112342,0.05582961,71522.0,71510.0,0.07132012]
[1773560112748,0.05582961,71522.0,71510.0,0.06992012]
[1773560112949,0.05582961,71522.0,71510.0,0.07132012]
[1773560113589,0.05582961,71522.0,71509.0,5.486e-05]
[1773560113590,0.06990953,71521.0,71509.0,5.486e-05]
[1773560113790,0.05582961,71520.0,71509.0,5.486e-05]
[1773560114147,0.05582961,71520.0,71508.0,0.0014]
[1773560114342,0.05587956,71520.0,71508.0,0.0014]
[1773560114549,0.05587956,71520.0,71507.0,0.06992322]
[1773560114748,0.05587956,71520.0,71508.0,0.0014]
[1773560115659,0.06991149,71519.0,71508.0,0.07132132]
[1773560115856,0.05582961,71518.0,71508.0,0.07132132]
[1773560116063,0.05582961,71518.0,71508.0,0.06992165]
[1773560116265,0.05582961,71518.0,71508.0,0.07132216]
[1773560116895,0.05582961,71518.0,71506.0,0.06992408]
[1773560117792,0.06991344,71517.0,71506.0,0.06992408]
[1773560117971,0.05582961,71516.0,71507.0,0.0014]
[1773560120455,0.12574472,71516.0,71507.0,0.07132286]
[1773560121147,0.05582961,71516.0,71507.0,0.07132286]
[1773560121652,0.12574453,71516.0,71507.0,0.07132286]
[1773560124553,0.05819062,71519.0,71507.0,0.07132286]
[1773560128289,0.05819062,71517.0,71507.0,0.07132286]
[1773560132959,0.06991442,71516.0,71507.0,0.07132286]
[1773560133151,0.05819062,71515.0,71507.0,0.07177086]
[1773560133527,0.05819062,71515.0,71506.0,0.0014]
[1773560133725,0.05819062,71515.0,71505.0,0.02310486]
[1773560133923,0.05819062,71515.0,71506.0,0.0014]
[1773560134726,0.05819062,71515.0,71505.0,0.02310486]
[1773560135068,0.05819062,71515.0,71506.0,0.0014]
[1773560135236,0.06991596,71515.0,71505.0,0.02310486]
[1773560135444,0.05819062,71514.0,71505.0,0.02450486]
[1773560136454,0.05819062,71514.0,71504.0,0.02174769]
[1773560136669,0.05819062,71514.0,71503.0,0.0002]
[1773560136836,0.05819062,71514.0,71504.0,0.07132518]
[1773560137433,0.05819062,71513.0,71504.0,0.06992518]
[1773560137667,0.05819062,71513.0,71504.0,0.07012518]
[1773560139561,0.05819062,71513.0,71504.0,0.0002]
[1773560139562,0.06991833,71512.0,71504.0,0.0002]
[1773560141567,0.06991833,71512.0,71504.0,0.0012]
[1773560142387,0.12810895,71512.0,71504.0,0.0012]
[1773560142766,0.12810895,71512.0,71504.0,0.0002]
[1773560144151,0.10410895,71512.0,71504.0,0.0002]
[1773560144367,0.05819062,71511.0,71504.0,0.0002]
[1773560144987,0.05819062,71511.0,71503.0,0.0002]
[1773560144988,0.05819062,71511.0,71500.0,0.0002]
[1773560145206,0.04591833,71512.0,71500.0,0.0002]
[1773560145207,0.05863219,71510.0,71500.0,0.0002]
[1773560145595,0.06992126,71509.0,71500.0,0.0002]
[1773560146223,0.0014,71508.0,71500.0,0.0002]
[1773560146590,0.0014,71508.0,71504.0,0.0002]
[1773560147881,0.06992322,71507.0,71504.0,0.0002]
[1773560149434,0.07092322,71507.0,71504.0,0.0002]
[1773560150002,0.06992322,71507.0,71504.0,0.0002]
[1773560150201,0.06992322,71507.0,71500.0,0.0002]
[1773560150202,0.07192322,71507.0,71500.0,0.0002]
[1773560150413,0.07192322,71507.0,71496.0,0.0002]
[1773560150628,0.07092322,71507.0,71496.0,0.0002]
[1773560150846,0.07192322,71507.0,71496.0,0.0002]
[1773560151418,0.07092322,71507.0,71496.0,0.0002]
[1773560151753,0.07192322,71507.0,71496.0,0.0002]
[1773560152150,0.06992322,71507.0,71496.0,0.0002]
[1773560153170,0.06992322,71507.0,71491.0,0.0001274]
[1773560153376,0.07092322,71507.0,71491.0,0.0001274]
[1773560153869,0.07092322,71507.0,71496.0,0.0002]
[1773560154836,0.06992322,71507.0,71496.0,0.0002]
[1773560155766,0.06992322,71507.0,71491.0,0.0001274]
[1773560156077,0.07092322,71507.0,71491.0,0.0001274]
[1773560156463,0.06992322,71507.0,71491.0,0.0001274]
[1773560156718,0.05863219,71501.0,71484.0,0.0004674]
[1773560157033,0.07092322,71507.0,71485.0,0.05910834]
[1773560157034,0.0014,71500.0,71485.0,0.05910834]
[1773560157192,0.07192322,71507.0,71485.0,0.05910834]
[1773560157193,0.0014,71499.0,71485.0,0.05910834]
[1773560157392,0.0014,71498.0,71485.0,0.05910834]
[1773560157596,0.0014,71497.0,71485.0,0.05910834]
[1773560158530,0.06993398,71496.0,71485.0,0.05946507]
[1773560160883,0.06993398,71496.0,71485.0,0.05966507]
[1773560167073,0.06993398,71496.0,71486.0,0.0014]
[1773560173674,0.07093398,71496.0,71486.0,0.0014]
[1773560173843,0.07093398,71496.0,71485.0,0.00055673]
[1773560174896,0.06993398,71496.0,71485.0,0.00055673]
[1773560175073,0.07093398,71496.0,71485.0,0.00055673]
[1773560176213,0.06993398,71496.0,71485.0,0.00055673]
[1773560176821,0.07015399,71496.0,71485.0,0.00055673]
[1773560177399,0.07115399,71496.0,71485.0,0.00055673]
[1773560177803,0.07015399,71496.0,71485.0,0.00055673]
[1773560178171,0.07115399,71496.0,71485.0,0.00055673]
[1773560178774,0.07215399,71496.0,71485.0,0.00055673]
[1773560178987,0.07115399,71496.0,71485.0,0.00055673]
[1773560179205,0.02388873,71495.0,71485.0,0.00055673]
[1773560180475,0.02388873,71495.0,71485.0,6.05e-05]
[1773560180673,0.02388873,71495.0,71484.0,0.0004674]
[1773560180873,0.06993593,71494.0,71484.0,0.0004674]
[1773560183330,0.07093593,71494.0,71484.0,0.0004674]
[1773560183825,0.06993593,71494.0,71484.0,0.0004674]
[1773560184232,0.07093593,71494.0,71484.0,0.0004674]
[1773560185554,0.06993593,71494.0,71484.0,0.0004674]
[1773560185872,0.07093593,71494.0,71484.0,0.0006674]
[1773560186250,0.06993593,71494.0,71484.0,0.0006674]
[1773560186620,0.07093593,71494.0,71484.0,0.0006674]
[1773560187037,0.06993593,71494.0,71484.0,0.0006674]
[1773560187409,0.07093593,71494.0,71484.0,0.0006674]
[1773560187610,0.07093593,71494.0,71485.0,0.05138718]
[1773560187831,0.00022001,71507.0,71491.0,0.05138718]
[1773560188042,0.00022001,71507.0,71492.0,0.05138718]
[1773560188043,0.04777211,71504.0,71492.0,0.05138718]
[1773560188241,0.02561709,71504.0,71492.0,0.05138718]
[1773560188859,0.001,71494.0,71492.0,0.05138718]
[1773560189065,0.07132713,71505.0,71492.0,0.05138718]
[1773560189478,0.06992713,71505.0,71492.0,0.05278718]
[1773560191090,0.06992713,71505.0,71492.0,0.05378718]
[1773560191408,0.06992713,71505.0,71492.0,0.05278718]
[1773560194705,0.07014714,71505.0,71492.0,0.05278718]
[1773560196318,0.05379853,71504.0,71491.0,0.00010728]
[1773560197774,0.05379853,71502.0,71491.0,0.00010728]
[1773560202566,0.12372762,71501.0,71491.0,0.00010728]
[1773560203194,0.12341028,71501.0,71491.0,0.00010728]
[1773560203360,0.12341028,71501.0,71491.0,0.00030728]
[1773560207395,0.12353768,71501.0,71488.0,0.0014]
[1773560207550,0.1236448,71501.0,71488.0,0.0014]
[1773560212104,0.1236448,71501.0,71487.0,0.0014]
[1773560212655,0.12386481,71501.0,71487.0,0.0014]
[1773560216312,0.12386481,71501.0,71488.0,0.0699418]
[1773560220340,0.04942095,71500.0,71488.0,0.0699418]
[1773560222339,0.06993104,71499.0,71488.0,0.0014]
[1773560223342,0.06993104,71499.0,71484.0,0.06016654]
[1773560223343,0.04942095,71498.0,71484.0,0.0002]
[1773560223643,0.04942095,71498.0,71485.0,0.0014]
[1773560223840,0.04942095,71498.0,71484.0,0.0002]
[1773560224371,0.04942095,71496.0,71484.0,0.0002]
[1773560224850,0.04942095,71496.0,71484.0,0.0012]
[1773560225073,0.04942095,71496.0,71473.0,0.20881921]
[1773560225074,0.04942095,71496.0,71477.0,0.07027991]
[1773560226388,0.04942095,71494.0,71477.0,0.07027991]
[1773560226602,0.04942095,71492.0,71477.0,0.07027991]
[1773560228195,0.06993006,71500.0,71480.0,0.0586893]
[1773560228401,0.06993006,71500.0,71481.0,0.06994865]
[1773560229073,0.06993006,71500.0,71482.0,0.0014]
[1773560230376,0.06993006,71500.0,71483.0,0.0699467]
[1773560231305,0.06993006,71500.0,71484.0,0.0014]
[1773560231511,0.09157466,71499.0,71484.0,0.0014]
[1773560233740,0.06993202,71498.0,71485.0,0.06994474]
[1773560234186,0.06993202,71498.0,71485.0,0.06017429]
[1773560242770,0.12277639,71498.0,71485.0,0.06017429]
[1773560243653,0.06993202,71498.0,71485.0,0.06017429]
[1773560243838,0.0526504,71497.0,71485.0,0.06017429]
[1773560244873,0.00022001,71499.0,71485.0,0.06017429]
[1773560245062,0.06993236,71498.0,71485.0,0.06017429]
[1773560245747,0.06993236,71498.0,71486.0,0.0014]
[1773560250584,0.06993236,71498.0,71487.0,0.06994278]
[1773560251353,0.05233581,71497.0,71487.0,0.06994278]
[1773560252828,0.12226979,71496.0,71487.0,0.06994278]
[1773560253127,0.12226979,71496.0,71487.0,0.07134278]
[1773560257711,0.12227171,71495.0,71487.0,0.07134278]
[1773560258219,0.05233581,71494.0,71487.0,0.07134278]
[1773560259246,0.05233581,71494.0,71487.0,0.06994278]
[1773560270301,0.12227186,71494.0,71487.0,0.06994278]
[1773560272662,0.06993496,71495.0,71487.0,0.06994278]
[1773560272873,0.05016974,71494.0,71487.0,0.06994278]
[1773560275573,0.05016974,71494.0,71470.0,0.05867692]
[1773560275574,0.05016974,71494.0,71473.0,0.03959225]
[1773560275575,0.06993691,71493.0,71473.0,0.03959225]
[1773560276748,0.06993691,71493.0,71473.0,0.04059225]
[1773560277145,0.07146431,71494.0,71473.0,0.001]
[1773560277365,0.07146431,71494.0,71474.0,0.04644256]
[1773560277705,0.07146431,71494.0,71475.0,0.06995452]
[1773560277906,0.12110367,71494.0,71475.0,0.06995452]
[1773560278128,0.07146431,71494.0,71475.0,0.06995452]
[1773560278287,0.04963936,71493.0,71475.0,0.06995452]
[1773560280165,0.07146431,71494.0,71475.0,0.06995452]
[1773560280166,0.0513163,71491.0,71475.0,0.06995452]
[1773560283441,0.05329475,71489.0,71476.0,0.0014]
[1773560285646,0.05329475,71489.0,71477.0,0.06995257]
[1773560286301,0.05329475,71489.0,71478.0,0.0014]
[1773560288674,0.05329475,71489.0,71477.0,0.06995257]
[1773560288872,0.05329475,71489.0,71478.0,0.0014]
[1773560289371,0.06994089,71489.0,71477.0,0.06995257]
[1773560289570,0.05252059,71488.0,71477.0,0.07135257]
[1773560289869,0.05252059,71488.0,71477.0,0.06995257]
[1773560290254,0.05252059,71488.0,71476.0,0.0014]
[1773560290839,0.05252059,71486.0,71477.0,0.06995257]
[1773560291579,0.05392059,71486.0,71477.0,0.06995257]
[1773560293978,0.06994474,71485.0,71474.0,0.0699554]
[1773560294176,0.05214705,71484.0,71474.0,0.0713554]
[1773560295033,0.05214705,71484.0,71474.0,0.0699554]
[1773560295372,0.05214705,71484.0,71474.0,0.0713554]
[1773560295527,0.05214705,71484.0,71474.0,0.0699554]
[1773560296614,0.05196068,71483.0,71474.0,0.0699554]
[1773560296769,0.05196068,71483.0,71474.0,0.0701554]
[1773560296971,0.0014,71486.0,71474.0,0.0701554]
[1773560298191,0.07134415,71486.0,71474.0,0.0701554]
[1773560303182,0.07074615,71486.0,71474.0,0.0701554]
[1773560305819,0.07074615,71486.0,71475.0,0.0014]
[1773560306798,0.07096616,71486.0,71475.0,0.0014]
[1773560307749,0.12183043,71486.0,71475.0,0.0014]
[1773560309351,0.07096616,71486.0,71476.0,0.0014]
[1773560309669,0.1224209,71486.0,71476.0,0.0014]
[1773560310495,0.05145474,71485.0,71476.0,0.0014]
[1773560312330,0.12140009,71485.0,71474.0,0.0701554]
[1773560312486,0.12140009,71485.0,71475.0,0.0014]
[1773560315459,0.06994535,71485.0,71474.0,0.0701554]
[1773560315665,0.05094917,71484.0,71476.0,0.0014]
[1773560320347,0.0505481,71483.0,71476.0,0.0014]
[1773560322434,0.0505481,71483.0,71474.0,0.0701554]
[1773560322764,0.0505481,71483.0,71475.0,0.0014]
[1773560322928,0.0505481,71483.0,71474.0,0.0701554]
[1773560323120,0.0505481,71483.0,71475.0,0.0014]
[1773560323472,0.0505481,71483.0,71474.0,0.0701554]
[1773560323675,0.0505481,71483.0,71475.0,0.0014]
[1773560323676,0.06994767,71482.0,71475.0,0.0014]
[1773560323824,0.12017765,71482.0,71475.0,0.0014]
[1773560324368,0.05022998,71481.0,71474.0,0.0715554]
[1773560324535,0.04862998,71481.0,71474.0,0.0715554]
[1773560324932,0.11857882,71481.0,71474.0,0.0715554]
[1773560326369,0.11857882,71481.0,71474.0,0.0701554]
[1773560326687,0.04927314,71482.0,71474.0,0.0701554]
[1773560328368,0.04992505,71481.0,71474.0,0.0701554]
[1773560330222,0.04992505,71481.0,71474.0,0.0002]
[1773560330423,0.11987448,71481.0,71474.0,0.07015528]
[1773560330564,0.11972136,71481.0,71474.0,0.07015528]
[1773560331834,0.0495928,71480.0,71473.0,0.07135588]
[1773560333314,0.0495928,71480.0,71473.0,0.06995588]
[1773560333521,0.0495928,71480.0,71473.0,0.07135588]
[1773560333840,0.0495928,71480.0,71473.0,0.06995588]
[1773560334051,0.0495928,71480.0,71473.0,0.07135588]
[1773560334381,0.0495928,71480.0,71473.0,0.06995588]
[1773560334532,0.0495928,71480.0,71473.0,0.07135588]
[1773560334931,0.11954254,71480.0,71473.0,0.07135588]
[1773560335316,0.11954254,71480.0,71473.0,0.06995588]
[1773560335516,0.11954254,71480.0,71473.0,0.07135588]
[1773560336724,0.06994974,71480.0,71473.0,0.0014]
[1773560336925,0.04907816,71479.0,71473.0,0.0014]
[1773560337133,0.04907816,71479.0,71471.0,0.01389241]
[1773560337329,0.04907816,71479.0,71472.0,0.0014]
[1773560337774,0.04907816,71479.0,71472.0,0.06995648]
[1773560337907,0.04907816,71479.0,71472.0,0.07135648]
[1773560338108,0.04913809,71479.0,71472.0,0.07135648]
[1773560338866,0.11902975,71478.0,71472.0,0.0014]
[1773560339364,0.04985295,71477.0,71471.0,0.01529241]
[1773560339726,0.11980626,71477.0,71471.0,0.01389241]
[1773560340335,0.04985295,71476.0,71471.0,0.01389241]
[1773560340533,0.04985295,71476.0,71469.0,0.0001274]
[1773560340764,0.04985295,71476.0,71468.0,0.07016117]
[1773560341469,0.04985295,71476.0,71468.0,0.0002]
[1773560342177,0.11903268,71475.0,71468.0,0.0002]
[1773560342642,0.06995452,71475.0,71468.0,0.0002]
[1773560342846,0.04907816,71474.0,71468.0,0.0002]
[1773560343072,0.11903416,71474.0,71468.0,0.0002]
[1773560343379,0.069956,71474.0,71468.0,0.0002]
[1773560343585,0.04907816,71473.0,71468.0,0.0002]
[1773560344265,0.04907816,71473.0,71468.0,0.07016135]
[1773560345693,0.04907816,71479.0,71468.0,0.07016135]
[1773560348696,0.06995159,71478.0,71468.0,0.07016135]
[1773560351910,0.11902975,71479.0,71468.0,0.07016135]
[1773560353026,0.06995159,71479.0,71468.0,0.0002]
[1773560353321,0.04907816,71478.0,71467.0,0.07136217]
[1773560353985,0.04907816,71478.0,71467.0,0.06996217]
[1773560354173,0.06995257,71477.0,71467.0,0.07136217]
[1773560354370,0.04907816,71476.0,71467.0,0.07136217]
[1773560355162,0.04889875,71476.0,71467.0,0.07136217]
[1773560355845,0.04889875,71476.0,71468.0,0.0002]
[1773560356196,0.11867383,71475.0,71468.0,0.0002]
[1773560359478,0.04907816,71474.0,71468.0,0.0002]
[1773560360234,0.11903464,71473.0,71468.0,0.0002]
[1773560360944,0.11903464,71473.0,71466.0,0.0014]
[1773560361359,0.11903464,71473.0,71461.0,0.05429229]
[1773560361665,0.11903464,71473.0,71466.0,0.0014]
[1773560361870,0.11903464,71473.0,71460.0,0.07016894]
[1773560361871,0.04675382,71472.0,71460.0,0.07016894]
[1773560362068,0.06995648,71473.0,71460.0,0.07016894]
[1773560362495,0.1167078,71476.0,71460.0,0.07016894]
[1773560363049,0.1167078,71476.0,71468.0,0.0002]
[1773560363251,0.00022001,71475.0,71468.0,0.0002]
[1773560365174,0.00022001,71475.0,71458.0,0.06996921]
[1773560365175,0.04675382,71473.0,71457.0,0.06989117]
[1773560368937,0.04675382,71469.0,71457.0,0.0014]
[1773560370095,0.06995746,71472.0,71457.0,0.0014]
[1773560370343,0.11671128,71472.0,71457.0,0.0014]
[1773560370722,0.04675382,71471.0,71457.0,0.0014]
[1773560371145,0.11671287,71471.0,71458.0,0.06997117]
[1773560372349,0.11671287,71471.0,71459.0,0.0014]
[1773560372654,0.04675382,71470.0,71459.0,0.0014]
[1773560373149,0.11671406,71470.0,71458.0,0.06997117]
[1773560373347,0.11671406,71470.0,71460.0,0.0014]
[1773560373709,0.04675382,71470.0,71458.0,0.06997117]
[1773560374024,0.11671326,71470.0,71459.0,0.0014]
[1773560374228,0.04675382,71470.0,71459.0,0.0014]
[1773560375151,0.00022001,71475.0,71461.0,0.04632693]
[1773560375375,0.06995075,71479.0,71468.0,0.04632693]
[1773560375550,0.06995075,71479.0,71469.0,0.04772693]
[1773560376252,0.0001274,71480.0,71469.0,0.04772693]
[1773560377015,0.07016891,71481.0,71470.0,0.05872049]
[1773560377016,0.00022001,71481.0,71470.0,0.05872049]
[1773560377216,0.00022001,71483.0,71472.0,0.04632693]
[1773560377415,0.00022001,71485.0,71472.0,0.04632693]
[1773560378928,0.00022001,71485.0,71472.0,0.04732693]
[1773560379137,0.07016494,71485.0,71473.0,0.11628341]
[1773560379937,0.00022001,71485.0,71473.0,0.11628341]
[1773560380158,0.00022001,71485.0,71474.0,0.04632693]
[1773560380386,0.00022001,71485.0,71475.0,0.0014]
[1773560381261,0.00022001,71485.0,71476.0,0.06995355]
[1773560382867,0.00022001,71489.0,71476.0,0.06995355]
[1773560382868,0.07015739,71493.0,71476.0,0.06995355]
[1773560383073,0.07015737,71493.0,71480.0,0.05872049]
[1773560383300,0.07015737,71493.0,71481.0,0.06994865]
[1773560384102,0.07015737,71493.0,71482.0,0.0014]
[1773560385592,0.07015737,71493.0,71483.0,0.0699467]
[1773560388403,0.04675382,71492.0,71483.0,0.0699467]
[1773560388585,0.07015737,71493.0,71483.0,0.0699467]
[1773560389584,0.11691119,71493.0,71483.0,0.0699467]
[1773560391307,0.11691119,71493.0,71484.0,0.0014]
[1773560397623,0.11691119,71493.0,71483.0,0.0699467]
[1773560397823,0.11691119,71493.0,71484.0,0.0014]
[1773560401427,0.11691119,71493.0,71484.0,0.07134525]
[1773560401655,0.11691119,71493.0,71484.0,0.06994525]
[1773560401858,0.11691119,71493.0,71484.0,0.07134525]
[1773560402296,0.07015737,71493.0,71484.0,0.07134525]
[1773560405188,0.07015737,71493.0,71484.0,0.06994525]
[1773560405516,0.07015737,71493.0,71484.0,0.07134525]
[1773560411105,0.07015737,71493.0,71476.0,0.04645018]
[1773560411106,0.04720552,71491.0,71467.0,0.06996225]
[1773560411306,0.04720552,71491.0,71464.0,0.06996519]
[1773560411307,0.04720552,71479.0,71464.0,0.06996519]
[1773560411509,0.04860552,71479.0,71464.0,0.07142512]
[1773560412304,0.04860552,71479.0,71464.0,0.07002512]
[1773560412305,0.06995159,71478.0,71464.0,0.07002512]
[1773560412522,0.04720552,71477.0,71464.0,0.07002512]
[1773560413554,0.04720552,71477.0,71464.0,0.07142512]
[1773560413879,0.04720552,71477.0,71464.0,0.07002512]
[1773560414099,0.04720552,71477.0,71464.0,0.07142512]
[1773560414425,0.04720552,71475.0,71464.0,0.07142512]
[1773560414772,0.04720552,71475.0,71464.0,0.07002512]
[1773560415475,0.04720552,71475.0,71464.0,0.07022512]
[1773560415829,0.04720552,71475.0,71465.0,0.0014]
[1773560416231,0.04720552,71475.0,71464.0,0.07022512]